[Event "Susha Chess Blitz Women 2022"]
[Site "Shusha"]
[Date "2022.09.24"]
[Round "8"]
[White "Mammadzada, Gunay"]
[Black "Mammadova, Gulnar"]
[Result "1-0"]
[ECO "C07"]
[WhiteElo "2473"]
[BlackElo "2382"]
[Annotator "TA"]
[PlyCount "71"]
[EventDate "2022.09.24"]
[EventType "tourn"]
[EventCountry "AZE"]
[SourceTitle "playchess.com"]
[Source "ChessBase"]
[SourceQuality "1"]
[TimeControl "180+2"]

{[%evp 12,71,15,6,18,0,0,-5,6,-7,0,-14,-8,-8,0,-12,-15,-22,-16,-21,56,43,81,44,64,39,18,30,104,34,21,-10,10,0,335,335,334,324,442,420,391,411,480,475,766,764,1146,1135,965,691,889,697,691,691,691,687,676,665,1056,1031,1153,838]} 1. e4 {[%emt 0:00:01]} e6 {[%emt 0:00:01]} 2. d4 {[%emt 0:00:02]} d5 {[%emt 0:00:01]} 3. Nd2 {[%emt 0:00:03]} c5 {[%emt 0:00:01]} 4. exd5 {[%emt 0:00:03]} Qxd5 {[%emt 0:00:01]} 5. dxc5 {[%emt 0:00:12]} Bxc5 {[%emt 0:00:03]} 6. Ngf3 {[%emt 0:00:01]} Nf6 {[%emt 0:00:05]} 7. Bc4 {[%emt 0:00:01]} Qc6 {[%emt 0:00:01] C07: French Tarrasch: 3...c5, 4 Ngf3 and 4 exd5 Qxd5.} 8. a4 {[%emt 0:00:00]} O-O {[%emt 0:00:21][%cal Oe6e5]} 9. O-O {[%emt 0:00:04]} a6 {[%emt 0:00:02] The position is equal.} 10. Qe2 {[%emt 0:00:09]} Nbd7 {[%emt 0:00:06]} 11. a5 {[%emt 0:00:10]} b5 {[%emt 0:00:26]} 12. axb6 {[%emt 0:00:11]} Bxb6 {[%emt 0:00:01]} 13. Nb3 {[%emt 0:00:06]} Bb7 {[%emt 0:00:09]} 14. Na5 {[%emt 0:00:18]} Bxa5 {[%emt 0:00:06]} 15. Rxa5 {[%emt 0:00:01] [#]} e5 $146 {[%emt 0:00:27]} (15... Qc7 $11 16. Bd2 Rfc8) ({Predecessor:} 15... Rfc8 16. b3 Nb6 17. Bd3 Nbd5 18. Bd2 Rd8 19. Rfa1 Nc7 20. Bg5 Rd5 21. Bxf6 gxf6 {0-1 (29) Samudin,E (1623)-Sviridova,V (2069) Pune 2014}) 16. Be3 {[%emt 0:00:28]} Rac8 {[%emt 0:00:22]} 17. Bb3 {[%emt 0:00:06] A strong pair of Bishops.} ({Reject} 17. Bxa6 $6 Bxa6 18. Rxa6 Qxc2 19. Qxc2 Rxc2 $11) 17... Ng4 {[%emt 0:00:22]} 18. h3 {[%emt 0:00:34]} Nxe3 {[%emt 0:00:12]} 19. Qxe3 {[%emt 0:00:32]} h6 {[%emt 0:00:03]} (19... Qg6 $11) 20. c3 {[%emt 0:00:17] White is much more active.} ({Better is} 20. Rd1 $16) 20... Qc7 $14 {[%emt 0:00:10]} 21. Raa1 {[%emt 0:00:08]} Rce8 {[%emt 0:00:08]} 22. Nh4 {[%emt 0:00:04]} Qb6 $2 {[%emt 0:00:12][%mdl 8192] [#]} (22... Nc5 $11 {and Black has nothing to worry.} 23. Bc2 Ne6) 23. Qxb6 $18 {[%emt 0:00:03]} Nxb6 {[%emt 0:00:01]} 24. Ng6 $1 {[%emt 0:00:01]} e4 {[%emt 0:00:11]} 25. Nxf8 {[%emt 0:00:02]} Kxf8 {[%emt 0:00:01]} 26. Rfd1 {[%emt 0:00:03]} Ke7 {[%emt 0:00:01]} 27. Rd4 {[%emt 0:00:01] [#] And now Rb4 would win. White is clearly winning.} Nd7 {[%emt 0:00:13]} (27... Rb8 $142 28. Ra5 f6) 28. Ba4 {[%emt 0:00:03]} Nc5 {[%emt 0:00:06]} 29. Bxe8 {[%emt 0:00:02]} Kxe8 {[%emt 0:00:02]} 30. Rad1 {[%emt 0:00:02]} Ke7 {[%emt 0:00:01]} 31. b4 {[%emt 0:00:02]} Nd3 {[%emt 0:00:01]} 32. R1xd3 {[%emt 0:00:04]} exd3 {[%emt 0:00:01]} 33. Rxd3 {[%emt 0:00:01]} Ke6 {[%emt 0:00:03]} 34. c4 {[%emt 0:00:01][%cal Bc3c4,Bc4c5][%mdl 32]} f5 {[%emt 0:00:01]} 35. Rd8 {[%emt 0:00:02]} g5 {[%emt 0:00:02]} 36. c5 {[%emt 0:00:00] Weighted Error Value: White=0.35/Black=0.50} 1-0

[Event "Susha Chess Blitz Women 2022"]
[Site "Shusha"]
[Date "2022.09.24"]
[Round "8"]
[White "Arabidze, Meri"]
[Black "Beydullayeva, Govhar"]
[Result "1-0"]
[ECO "E15"]
[WhiteElo "2422"]
[BlackElo "2346"]
[Annotator "TA"]
[PlyCount "59"]
[EventDate "2022.09.24"]
[EventType "tourn"]
[EventCountry "AZE"]
[SourceTitle "playchess.com"]
[Source "ChessBase"]
[SourceQuality "1"]
[TimeControl "180+2"]

{[%evp 19,59,14,16,0,45,46,92,92,93,89,83,95,93,98,105,80,138,137,134,121,125,135,124,124,185,176,243,154,577,410,395,388,365,197,300,302,566,516,550,535,1300,1093]} 1. d4 {[%emt 0:00:01]} Nf6 {[%emt 0:00:01]} 2. c4 {[%emt 0:00:01]} e6 {[%emt 0:00:00]} 3. Nf3 {[%emt 0:00:01]} b6 {[%emt 0:00:01]} 4. g3 {[%emt 0:00:01]} Ba6 {[%emt 0:00:01]} 5. Qa4 {[%emt 0:00:02]} Bb7 {[%emt 0:00:05]} 6. Bg2 {[%emt 0:00:01]} c5 {[%emt 0:00:01]} 7. dxc5 {[%emt 0:00:03]} bxc5 {[%emt 0:00:01]} 8. O-O {[%emt 0:00:03]} Qb6 {[%emt 0:00:06]} 9. Nc3 {[%emt 0:00:06]} Be7 {[%emt 0:00:00]} 10. Rd1 {[%emt 0:00:19]} O-O $1 {[%emt 0:00:02]} 11. Qb5 {[%emt 0:00:19] E15: Queen's Indian: 4 g3 sidelines, 4 g3 Ba6 and 4 g3 Bb7 early deviations.} Nc6 {[%emt 0:01:09]} 12. Bf4 {[%emt 0:00:11] [#]} d5 $146 {[%emt 0:00:10]} (12... Rfd8 $14) ({Predecessor:} 12... Na5 13. Qxb6 axb6 14. b3 d5 15. Ne5 Rfd8 16. Rac1 h6 17. h4 Bd6 18. cxd5 exd5 {½-½ (47) Nabaty,T (2597)-Navara,D (2728) Baku 2015}) 13. Qxb6 $16 {[%emt 0:00:27] White is better.} ({Much worse is} 13. cxd5 Qxb5 14. Nxb5 Nxd5 $11) 13... axb6 {[%emt 0:00:01]} 14. cxd5 {[%emt 0:00:01]} exd5 {[%emt 0:00:02]} 15. Nxd5 {[%emt 0:00:06]} Nxd5 {[%emt 0:00:10]} 16. Rxd5 {[%emt 0:00:01] [#] Hoping for Rd7.} Bf6 {[%emt 0:00:04]} 17. Rd7 {[%emt 0:00:10]} Bc8 {[%emt 0:00:25]} (17... Na5 $142) 18. Rd6 $36 {[%emt 0:00:01][%mdl 2048] White has strong initiative.} ({Don't take} 18. Rd2 Ra6 $16) 18... Nb4 {[%emt 0:00:10]} 19. Ne5 {[%emt 0:00:15]} Rxa2 {[%emt 0:00:01]} 20. Rxa2 {[%emt 0:00:01]} Nxa2 {[%emt 0:00:01]} 21. Rxb6 {[%emt 0:00:02][%cal Oe5f7] And now Nxf7! would win. White has more active pieces. The black rooks are badly placed.} Re8 {[%emt 0:00:33]} (21... Nb4 $16 22. Nc6 Nxc6) 22. Rb8 $18 {[%emt 0:00:27]} g5 {[%emt 0:00:21]} (22... Nc1 $142) 23. Bd5 {[%emt 0:00:32]} Rd8 $2 {[%emt 0:00:15] [#]} (23... Bxe5 $16 24. Bxe5 Nb4) 24. Bxf7+ {[%emt 0:00:28]} Kg7 {[%emt 0:00:01]} 25. Bxa2 {[%emt 0:00:01]} gxf4 {[%emt 0:00:04]} 26. Nd3 {[%emt 0:00:05]} (26. gxf4 $142 {Black must now prevent e4.} Bh3 27. Rxd8 Bxd8 28. f3) 26... fxg3 {[%emt 0:00:03]} (26... f3 {keeps fighting.} 27. exf3 Rxd3 28. Rxc8 Bd4 29. Rc7+ Kf6 30. Rc6+ (30. Rxh7 Rd2 $16) 30... Kg7 31. Rc7+ Kf6 32. Rxh7 Rd2) 27. hxg3 {[%emt 0:00:00]} Ba6 $2 {[%emt 0:00:04]} (27... Be7 28. Bc4 Kf8) 28. Rxd8 {[%emt 0:00:02] White is clearly winning.} Bxd8 {[%emt 0:00:01]} 29. Nxc5 {[%emt 0:00:02]} Bxe2 {[%emt 0:00:01]} 30. Ne6+ {[%emt 0:00:01] Black got outplayed after the opening.  Weighted Error Value: White=0.48/Black=0.68} 1-0

[Event "Susha Chess Blitz Women 2022"]
[Site "Shusha"]
[Date "2022.09.24"]
[Round "8"]
[White "Fataliyeva, Ulviyya"]
[Black "Efroimski, Marsel"]
[Result "0-1"]
[ECO "A06"]
[WhiteElo "2408"]
[BlackElo "2462"]
[Annotator "TA"]
[PlyCount "18"]
[EventDate "2022.09.24"]
[EventType "tourn"]
[EventCountry "AZE"]
[SourceTitle "playchess.com"]
[Source "ChessBase"]
[SourceQuality "1"]
[TimeControl "180+2"]

{[%evp 9,18,17,26,7,20,0,0,10,8,-504,-485]} 1. Nf3 {[%emt 0:00:01]} d5 {[%emt 0:00:00]} 2. g3 {[%emt 0:00:01]} Nc6 {[%emt 0:00:01]} 3. d4 {[%emt 0:00:03]} Bf5 {[%emt 0:00:01]} 4. Bg2 {[%emt 0:00:01]} Nb4 {[%emt 0:00:07]} 5. Na3 {[%emt 0:00:01]} e6 {[%emt 0:00:02]} 6. c3 {[%emt 0:00:08] D02: 1 d4 d5 2 Nf3 sidelines, including 2...Nf6 3 g3 and 2...Nf6 3 Bf4.} Nc6 {[%emt 0:00:02]} 7. O-O {[%emt 0:00:05]} Bxa3 {[%emt 0:00:03]} 8. bxa3 {[%emt 0:00:01]} Nf6 {[%emt 0:00:01] [#]} 9. Rb1 $146 {[%emt 0:00:01][%mdl 8192] [#]} ({Predecessor:} 9. Nh4 Bg6 10. Nxg6 hxg6 11. Rb1 Na5 12. Bg5 O-O 13. e4 dxe4 14. Bxe4 c6 15. Qf3 {1-0 (24) Khismatullin,D (2651)-Bartel,M (2622) Berlin 2015}) 9... Bxb1 {[%emt 0:00:01] White did not feel at home in the position after the opening.  Weighted Error Value: White=1.97/Black=0.00 (flawless)} 0-1

[Event "Susha Chess Blitz Women 2022"]
[Site "Shusha"]
[Date "2022.09.24"]
[Round "8"]
[White "Ozturk Orenli, Kubra"]
[Black "Balajayeva, Khanim"]
[Result "0-1"]
[ECO "D26"]
[WhiteElo "2319"]
[BlackElo "2379"]
[Annotator "TA"]
[PlyCount "94"]
[EventDate "2022.09.24"]
[EventType "tourn"]
[EventCountry "AZE"]
[SourceTitle "playchess.com"]
[Source "ChessBase"]
[SourceQuality "1"]
[TimeControl "180+2"]

{[%evp 13,94,19,40,39,41,38,45,30,28,29,52,32,27,0,0,10,43,24,41,17,58,54,75,50,48,26,136,71,80,66,112,0,0,-37,-35,-62,-86,-89,-62,-71,-73,-69,0,0,0,0,72,63,108,18,52,35,56,47,47,29,37,-96,-102,-101,-37,-621,-616,-1093,-1053,-1333,-1055,-5206,-2595,-29984,-29985,-29985,-1070,-906,-493,-1027,-989,-4794,0,-29982,-29982,-29964,-5887]} 1. d4 {[%emt 0:00:01]} d5 {[%emt 0:00:00]} 2. c4 {[%emt 0:00:01]} dxc4 {[%emt 0:00:01]} 3. Nf3 {[%emt 0:00:01]} Nf6 {[%emt 0:00:01]} 4. e3 {[%emt 0:00:01]} e6 {[%emt 0:00:00]} 5. Bxc4 {[%emt 0:00:01]} a6 {[%emt 0:00:01]} 6. O-O {[%emt 0:00:04]} b5 {[%emt 0:00:01]} 7. Bd3 {[%emt 0:00:01]} Bb7 {[%emt 0:00:01]} 8. Qe2 {[%emt 0:00:14] D26: Queen's Gambit Accepted: 4 e3 e6 5 Bxc5 c5 sidelines.} Nbd7 {[%emt 0:00:04]} 9. a4 {[%emt 0:00:08]} b4 {[%emt 0:00:01]} 10. Nbd2 {[%emt 0:00:03][%cal Bb1d2,Bd2c4,Bc4e5][%mdl 32] White is slightly better.} c5 {[%emt 0:00:02]} 11. a5 {[%emt 0:00:10]} Be7 {[%emt 0:00:03]} 12. Nc4 {[%emt 0:00:26]} O-O {[%emt 0:00:03]} 13. Rd1 {[%emt 0:00:13]} Qc7 {[%emt 0:00:03]} 14. Bd2 {[%emt 0:01:02]} cxd4 {[%emt 0:00:14]} 15. exd4 {[%emt 0:00:18]} Nd5 {[%emt 0:00:20] [#]} 16. Nce5 $146 {[%emt 0:00:12]} ({Predecessor:} 16. Nfe5 Nxe5 17. dxe5 Bc5 18. Rac1 Qe7 19. Nd6 Bxd6 20. exd6 Qxd6 21. Rc4 f5 22. Bc2 {½-½ (65) Martinovic,S (2554)-Levin,G (2332) Terme Catez 2022}) 16... N7f6 {[%emt 0:00:11]} 17. Rdc1 {[%emt 0:00:04]} Qd6 {[%emt 0:00:08]} 18. Nc4 {[%emt 0:00:04]} Qb8 {[%emt 0:00:27]} 19. Nfe5 {[%emt 0:00:02]} Bd8 {[%emt 0:00:21] Prevents Nb6.} (19... Qa7 $11) 20. Bb1 {[%emt 0:00:06]} (20. g4 $142 $1 {[%cal Rg4g5] Strongly threatening g5.} Bc7 21. g5) 20... Bc7 {[%emt 0:00:10]} 21. Qd3 {[%emt 0:00:03][%cal Oe5d7]} Rd8 {[%emt 0:00:16] Against Nd7} (21... Qd8 $14 {feels stronger.}) 22. Bg5 {[%emt 0:00:03]} (22. Qh3 $16) 22... h6 $11 {[%emt 0:00:06]} 23. Bxf6 {[%emt 0:00:09]} Nxf6 {[%emt 0:00:01]} 24. Bc2 {[%emt 0:00:07]} Qa7 {[%emt 0:00:16]} 25. Rd1 {[%emt 0:00:04]} Be4 {[%emt 0:00:02] A strong pair of Bishops.} 26. Qe2 {[%emt 0:00:03] [#]} Bxc2 {[%emt 0:00:04]} ({But not} 26... Rxd4 27. Rxd4 Bxc2 28. Nc6 $16) 27. Qxc2 {[%emt 0:00:01]} Bxe5 {[%emt 0:00:06]} (27... Rxd4 $15 28. Rxd4 Qxd4) 28. dxe5 {[%emt 0:00:02]} Nd5 {[%emt 0:00:00]} 29. Nd6 {[%emt 0:00:02]} Rab8 {[%emt 0:00:11]} (29... Rd7 $1 $11 {keeps the balance.}) 30. Rac1 $16 {[%emt 0:00:04]} Qe7 {[%emt 0:00:05]} 31. h3 {[%emt 0:00:04]} ({White should play} 31. Qe2 $16) 31... Qg5 {[%emt 0:00:03]} 32. Qe4 {[%emt 0:00:03]} b3 {[%emt 0:00:11]} 33. Rc6 {[%emt 0:00:03]} Rb4 {[%emt 0:00:05][%cal Bb8b4,Bb4f4,Bf4c4][%mdl 32]} 34. Qf3 {[%emt 0:00:04]} Rf4 {[%emt 0:00:02]} 35. Qg3 {[%emt 0:00:02]} (35. Qe2 $14 {stays ahead.}) 35... Qxe5 $17 {[%emt 0:00:09]} 36. Nc4 {[%emt 0:00:01]} Qf6 {[%emt 0:00:02]} (36... Qe2 $17 37. Rxd5 exd5 38. Qxf4 dxc4 39. Rxc4 g5) 37. Rxa6 $2 {[%emt 0:00:02][%mdl 8192]} (37. Rd2 $15) 37... Rxc4 $19 {[%emt 0:00:02]} 38. Ra7 {[%emt 0:00:03]} Qxb2 {[%emt 0:00:06]} 39. a6 {[%emt 0:00:02]} Qe2 {[%emt 0:00:04]} 40. Rb1 {[%emt 0:00:04]} b2 {[%emt 0:00:02]} 41. Qa3 {[%emt 0:00:02]} Rc1+ {[%emt 0:00:10]} 42. Rxc1 {[%emt 0:00:01]} bxc1=Q+ {[%emt 0:00:00]} (42... Nf4 $142 43. Ra8 Rxa8 44. Qc5 Qe4 45. f3 Qe2 46. Rc2 b1=Q+ 47. Kh2 Qexc2 48. Kg3 Qxc5 49. h4 Qg6+ 50. Kxf4 e5#) 43. Qxc1 {[%emt 0:00:01]} Qb5 {[%emt 0:00:04]} 44. Qc2 {[%emt 0:00:03]} (44. Qf1 $142 Qc6 45. Qd3) 44... Nf4 {[%emt 0:00:03] ( -> ...Qd5)} 45. Qe4 {[%emt 0:00:02] [#]} Nd5 $2 {[%emt 0:00:04]} (45... Nxh3+ $1 $19 46. gxh3 Rd1+ 47. Kh2 Qb8+ 48. Rc7 Qxc7+ 49. Kg2 Qa7) 46. Qf3 $2 {[%emt 0:00:02][%mdl 8192]} (46. Qc2 $11 Nf4 47. Rc7) 46... Qb1+ {[%emt 0:00:01]} 47. Kh2 {[%emt 0:00:01]} Qb8+ {[%emt 0:00:01] Weighted Error Value: White=1.14/Black=0.50} 0-1

[Event "Susha Chess Blitz Women 2022"]
[Site "Shusha"]
[Date "2022.09.24"]
[Round "9"]
[White "Mammadzada, Gunay"]
[Black "Zawadzka, Jolanta"]
[Result "1-0"]
[ECO "B32"]
[WhiteElo "2473"]
[BlackElo "2401"]
[Annotator "TA"]
[PlyCount "69"]
[EventDate "2022.09.24"]
[EventType "tourn"]
[EventCountry "AZE"]
[SourceTitle "playchess.com"]
[Source "ChessBase"]
[SourceQuality "1"]
[TimeControl "180+2"]

{[%evp 14,69,39,46,41,34,32,21,29,22,18,38,35,40,110,106,104,110,129,129,273,214,215,220,225,212,217,120,152,150,350,337,339,330,330,313,625,585,772,528,584,571,567,557,506,297,515,264,237,197,174,-115,0,0,29988,29989,29989,29990]} 1. e4 {[%emt 0:00:02]} c5 {[%emt 0:00:01]} 2. Nf3 {[%emt 0:00:01][%cal Bg1f3,Bf3d4,Bd4b5,Bb5a3,Ba3c4,Bc4e3][%mdl 32]} Nc6 {[%emt 0:00:02]} 3. d4 {[%emt 0:00:08]} cxd4 {[%emt 0:00:02]} 4. Nxd4 {[%emt 0:00:01]} e5 {[%emt 0:00:04]} 5. Nb5 {[%emt 0:00:02]} d6 {[%emt 0:00:01]} 6. N1c3 {[%emt 0:00:01]} a6 {[%emt 0:00:01]} 7. Na3 {[%emt 0:00:00]} Be7 {[%emt 0:00:02]} 8. Nc4 {[%emt 0:00:04]} b5 {[%emt 0:00:11] B32: Sicilian: Löwenthal and Kalashnikov Variations.} 9. Ne3 {[%emt 0:00:01]} ({Reject} 9. Qd5 Bb7 10. Ne3 Nf6 $11) 9... Nf6 {[%emt 0:00:02]} 10. g3 {[%emt 0:00:05]} h5 {[%emt 0:00:05] The position is equal.} 11. h4 {[%emt 0:00:03]} Nd4 {[%emt 0:00:26]} 12. Bg2 {[%emt 0:00:09]} Be6 {[%emt 0:00:12]} 13. Ncd5 {[%emt 0:00:19] [#]} Rc8 $146 {[%emt 0:00:53]} ({Better is} 13... Nxd5 $14 14. Nxd5 Bxd5 15. exd5 g6) ({Predecessor:} 13... Nxd5 14. Nxd5 Bxd5 15. exd5 g6 16. c3 Nf5 17. a4 O-O 18. Qd3 Rb8 19. axb5 axb5 {½-½ (39) So,W (2754)-Carlsen,M (2861) Abidjan 2019}) 14. c3 $16 {[%emt 0:00:04]} Nc6 {[%emt 0:00:01]} 15. O-O {[%emt 0:01:02] White is more active.} Ng4 {[%emt 0:00:01][%cal Oe7h4]} 16. a4 {[%emt 0:00:08]} Bxd5 {[%emt 0:00:50]} (16... b4 $16 17. f3 (17. cxb4 Bxh4 18. Nf5 Bxf5 $16) 17... Nf6) 17. exd5 {[%emt 0:00:05]} Nxe3 {[%emt 0:00:07]} 18. Bxe3 {[%emt 0:00:10]} Na5 {[%emt 0:00:02]} 19. axb5 {[%emt 0:00:13]} axb5 {[%emt 0:00:02]} 20. Qd3 {[%emt 0:00:19]} ({White should play} 20. b3 $18) 20... Nc4 21. Bc1 g5 $2 {[%emt 0:00:07] [#]} (21... Rb8 $16 22. b3 Nb6 23. Qxb5+ Nd7) 22. b3 $18 {[%emt 0:00:04]} Nb6 {[%emt 0:00:05]} 23. Qxb5+ {[%emt 0:00:03]} Nd7 {[%emt 0:00:00]} 24. Ra7 {[%emt 0:00:18]} Rb8 $2 {[%emt 0:00:17]} (24... gxh4 25. Be3 hxg3) 25. Qa4 {[%emt 0:00:01]} f5 {[%emt 0:00:07]} 26. Bxg5 {[%emt 0:00:13]} Bxg5 {[%emt 0:00:02]} 27. hxg5 {[%emt 0:00:01]} Rh7 {[%emt 0:00:01]} 28. g6 {[%emt 0:00:05]} Rg7 {[%emt 0:00:01]} 29. Bf3 {[%emt 0:00:07]} Qg5 $2 {[%emt 0:00:05]} (29... Kf8 {was necessary.} 30. Ra1 (30. Bxh5 Nc5 $18) 30... Nb6) 30. Qc6 {[%emt 0:00:03]} Qxg6 {[%emt 0:00:02]} 31. Kg2 {[%emt 0:00:08] And now Rh1 would win. Chess con chili.} Rd8 {[%emt 0:00:01]} 32. Rb7 $2 {[%emt 0:00:02] [#]} ({White must play} 32. Rh1 $18 Rh7 33. Rh4) 32... h4 {[%emt 0:00:01]} (32... e4 $1 $17 {[%cal Re4f3]} 33. Bd1 f4) 33. Rh1 $11 {[%emt 0:00:00]} hxg3 {[%emt 0:00:04][%mdl 8192]} (33... Rh7 $11) 34. Bh5 {[%emt 0:00:01]} gxf2+ {[%emt 0:00:05]} 35. Kxf2 {[%emt 0:00:01] Weighted Error Value: White=0.62/Black=0.70} 1-0

[Event "Susha Chess Blitz Women 2022"]
[Site "Shusha"]
[Date "2022.09.24"]
[Round "9"]
[White "Arabidze, Meri"]
[Black "Efroimski, Marsel"]
[Result "1-0"]
[ECO "A06"]
[WhiteElo "2422"]
[BlackElo "2462"]
[Annotator "TA"]
[PlyCount "94"]
[EventDate "2022.09.24"]
[EventType "tourn"]
[EventCountry "AZE"]
[SourceTitle "playchess.com"]
[Source "ChessBase"]
[SourceQuality "1"]
[TimeControl "180+2"]

{[%evp 11,94,25,21,20,25,0,12,0,11,-2,-11,-6,15,7,16,18,22,2,15,0,0,0,0,0,0,0,0,0,34,30,44,47,63,50,52,55,93,77,320,272,271,29,30,27,27,45,43,25,52,35,35,22,212,230,374,342,1256,1177,29978,29979,29981,29982,29982,29975,29981,29982,29982,1137,29982,5065,1473,1264,1216,1008,1108,1179,1188,1129,1079,994,1213,1136,6079,731,780]} 1. Nf3 {[%emt 0:00:01]} d5 {[%emt 0:00:00]} 2. g3 {[%emt 0:00:01]} Nc6 {[%emt 0:00:01]} 3. d4 {[%emt 0:00:03]} Bf5 {[%emt 0:00:01]} 4. Bg2 {[%emt 0:00:03]} Nb4 {[%emt 0:00:01]} 5. Na3 {[%emt 0:00:02]} e6 {[%emt 0:00:03]} 6. O-O {[%emt 0:00:05]} Be7 {[%emt 0:00:04]} 7. c3 {[%emt 0:00:08][%cal Bc2c3,Bc3c4][%mdl 32] D02: 1 d4 d5 2 Nf3 sidelines, including 2...Nf6 3 g3 and 2...Nf6 3 Bf4.} Nc6 {[%emt 0:00:03]} 8. Nb1 {[%emt 0:00:05]} Nf6 {[%emt 0:00:04]} 9. Nbd2 {[%emt 0:00:06] The position is equal.} h6 {[%emt 0:00:02]} 10. b3 {[%emt 0:00:08] [#]} Ne4 $146 {[%emt 0:00:02]} ({Predecessor:} 10... O-O 11. Bb2 Nb8 12. c4 c6 13. Ne5 Na6 14. Rc1 Nc7 15. e3 Nce8 16. Qe2 Nc7 17. f3 Bh7 18. e4 Nd7 19. Nxd7 Qxd7 {0-1 (66) Schmitz,M (1914)-Guerreiro,N (2083) Ferreira do Alentejo 2019}) 11. Bb2 {[%emt 0:00:01]} O-O {[%emt 0:00:08]} 12. c4 {[%emt 0:00:07]} Nxd2 {[%emt 0:00:09]} 13. Qxd2 {[%emt 0:00:04]} Be4 {[%emt 0:00:01]} 14. Rac1 {[%emt 0:00:11]} a5 {[%emt 0:00:02]} 15. a3 {[%emt 0:00:05]} a4 {[%emt 0:00:14]} 16. b4 {[%emt 0:00:01]} dxc4 {[%emt 0:00:01]} 17. Rxc4 {[%emt 0:00:02]} Qd5 {[%emt 0:00:01]} 18. Rfc1 {[%emt 0:00:10]} Rfd8 {[%emt 0:00:24]} 19. Ne1 {[%emt 0:00:21]} Bg5 {[%emt 0:00:38]} 20. f4 {[%emt 0:00:22] [#] Strongly threatening Rc5.} Bf6 {[%emt 0:00:05] And now ...Bxg2 would win.} 21. e3 {[%emt 0:00:06]} Bxg2 {[%emt 0:00:14]} 22. Qxg2 {[%emt 0:00:03]} Qxg2+ {[%emt 0:00:50]} 23. Kxg2 {[%emt 0:00:00]} Rd5 {[%emt 0:00:16]} 24. Nd3 {[%emt 0:00:07]} e5 $2 {[%emt 0:00:10]} (24... Bd8 $16 {was necessary.}) 25. fxe5 {[%emt 0:00:14]} Nxe5 {[%emt 0:00:08]} 26. dxe5 {[%emt 0:00:34]} (26. Nxe5 $18 Bxe5 27. R1c2 (27. dxe5 Rd2+ 28. Kf3 Rxb2 $16) (27. e4 Rdd8 $16)) 26... Rxd3 $11 {[%emt 0:00:01]} 27. exf6 {[%emt 0:00:01]} Rd2+ {[%emt 0:00:01]} 28. Kf3 {[%emt 0:00:07]} Rxb2 {[%emt 0:00:01]} 29. Rxc7 $14 {[%emt 0:00:01][%mdl 4096] Endgame KRR-KRR} Rb3 {[%emt 0:00:05]} 30. Rxb7 {[%emt 0:00:07]} gxf6 {[%emt 0:00:03]} 31. Rcc7 {[%emt 0:00:05]} Re8 $2 {[%emt 0:00:01] Black is on the road to losing.} (31... Rf8 $1 $11 {and Black has nothing to worry.}) 32. Rxf7 $18 {[%emt 0:00:03]} Rbxe3+ {[%emt 0:00:04]} (32... Rxa3 $142 33. Rg7+ (33. Rxf6 Raxe3+ 34. Kf4 a3 $16) 33... Kh8) 33. Kg4 {[%emt 0:00:02]} R8e4+ $2 {[%emt 0:00:05]} (33... R8e5 34. Rg7+ Kh8 35. Rh7+ Kg8 36. Rbg7+ Kf8) 34. Kh5 {[%emt 0:00:15] [#] Rg7+ would kill now.} Re2 {[%emt 0:00:01]} 35. Rg7+ {[%emt 0:00:14]} Kf8 {[%emt 0:00:01]} 36. h4 {[%emt 0:00:04]} (36. Kg6 Rg4+ 37. Kh7 Rxg7+ 38. Rxg7 Rxh2 $16) 36... R2e3 {[%emt 0:00:03]} 37. Rbf7+ {[%emt 0:00:02]} Ke8 {[%emt 0:00:01]} 38. Ra7 {[%emt 0:00:01][%cal Ra7a8]} Kf8 {[%emt 0:00:01]} 39. Rgf7+ {[%emt 0:00:02]} (39. Kxh6 $142 f5 40. Kh7 Rg4 41. Ra8+ Re8 42. Rxg4 Rxa8 43. Rg8+ Kf7 44. Rxa8) 39... Ke8 {[%emt 0:00:01]} 40. Rfb7 {[%emt 0:00:01]} (40. Rh7 $142 Re7 41. Rhxe7+ Rxe7 42. Rxe7+ Kxe7 43. Kxh6 Kf7 44. h5 Ke6 45. Kg6) 40... Kf8 {[%emt 0:00:03] White is clearly winning.} 41. Rb8+ {[%emt 0:00:02]} Re8 {[%emt 0:00:01]} 42. Rxe8+ {[%emt 0:00:01]} Kxe8 {[%emt 0:00:01]} 43. Rxa4 {[%emt 0:00:03]} Rxg3 {[%emt 0:00:01]} 44. Kxh6 {[%emt 0:00:01] KR-KR} f5 {[%emt 0:00:02]} 45. b5 {[%emt 0:00:03]} Rg4 {[%emt 0:00:02]} 46. Ra8+ {[%emt 0:00:02]} ({Not} 46. Rxg4 $2 fxg4 47. Kh7 g3 $19) 46... Ke7 {[%emt 0:00:08]} 47. Kh5 {[%emt 0:00:01]} (47. b6 $142 Kd6 48. b7 Ke5 49. b8=Q+ Ke4 50. Qb1+ Kf4 51. Qe1 Rg3 52. Qf2+ Ke5 53. Qxg3+ f4 54. Qd3 f3 55. Kg5 Ke6 56. Re8+ Kf7 57. Qg6#) 47... Rg3 {[%emt 0:00:00] Weighted Error Value: White=0.22 (precise) /Black=0.67} 1-0